lending/lending_fUSD_20251124
["ID","MTS","AMOUNT","RATE_DAILY","PERIOD"]
[394807777,1763971850110,-500.0,0.00039007,8]
[394807778,1763971850123,-500.0,0.00039007,8]
[394807779,1763971850132,-500.0,0.00039007,8]
[394807780,1763971850142,-500.0,0.00039007,8]
[394807781,1763971850151,-500.0,0.00039007,8]
[394807782,1763971850161,-500.0,0.00039007,8]
[394807783,1763971850172,-500.0,0.00039007,8]
[394807784,1763971850182,-501.67103759,0.00039007,8]
[394807785,1763971850192,-500.0,0.00039007,8]
[394807786,1763971850203,-500.0,0.00039007,8]
[394807787,1763971850214,-503.23679119,0.00039007,8]
[394807788,1763971850224,-500.0,0.00039007,8]
[394807789,1763971850234,-500.0,0.00039007,8]
[394807790,1763971850244,-506.57556189,0.00039007,8]
[394807791,1763971850255,-509.51051498,0.00039007,8]
[394807792,1763971850264,-96.89843136,0.00039007,8]
[394807793,1763971850327,-403.10156864,0.00039007,8]
[394807794,1763971850337,-500.0,0.00039007,8]
[394807795,1763971850348,-500.0,0.00039007,8]
[394807796,1763971850358,-634.82026114,0.00039007,8]
[394807797,1763971850368,-534.16852633,0.00039007,8]
[394807798,1763971850377,-500.0,0.00039007,8]
[394807799,1763971850387,-500.0,0.00039007,8]
[394807800,1763971850398,-506.55808762,0.00039007,8]
[394807801,1763971850408,-500.0,0.00039007,8]
[394807802,1763971850418,-500.0,0.00039007,8]
[394807803,1763971850428,-1980.05227944,0.0003905,2]
[394807804,1763971850440,-869.29227437,0.0003905,2]
[394807805,1763971850452,-468.37725316,0.0003905,2]
[394807806,1763971850464,-1761.22954744,0.0003905,2]
[394807807,1763971850474,-32.09045256,0.00039055,2]
[394807808,1763971850507,-283.08,0.00036803,8]
[394807809,1763971850525,-216.92,0.00036803,8]
[394807810,1763971850536,-499.81120004,0.00038805,8]
[394807820,1763972758782,155.75,0.00013699,2]
[394807821,1763972811542,2081.31961716,0.000162,5]
[394807827,1763972889384,-155.75,0.00020548,2]
[394807828,1763972889406,-5.25,0.00027397,2]
[394807832,1763972993051,4069.0,0.00022,30]
[394807834,1763973032248,-150.5,0.00027397,2]
[394807835,1763973032257,-2051.75,0.00033147,2]
[394807836,1763973032267,-155.75,0.00034247,2]
[394807838,1763973032276,-697.65,0.00035369,2]
[394807840,1763973032287,-1852.42,0.00035453,2]
[394807842,1763973032296,-200.0,0.00035467,2]
[394807844,1763973032306,-150.0,0.00035489,2]
[394807846,1763973032315,-156.17328586,0.00035582,74]
[394807847,1763973032324,-1000.0,0.00035679,2]
[394807848,1763973032333,-1200.0,0.00035681,3]
[394807849,1763973032342,-300.0,0.00035682,3]
[394807850,1763973032352,-20726.45,0.00035683,38]
[394807851,1763973032361,-156.17328582,0.00035751,74]
[394807852,1763973032371,-500.0,0.00035912,5]
[394807853,1763973032380,-902.055,0.00035919,43]
[394807854,1763973032389,-156.17328582,0.00035919,75]
[394807855,1763973032398,-179.83563876,0.00036,120]
[394807856,1763973032411,-5597.85,0.00036001,2]
[394807857,1763973032420,-156.17328582,0.00036088,75]
[394807858,1763973032429,-156.17328582,0.00036256,75]
[394807859,1763973032439,-156.17328582,0.00036425,76]
[394807860,1763973032448,-550.0,0.00036493,2]
[394807861,1763973032457,-500.0,0.00036573,5]
[394807862,1763973032466,-500.0,0.00036573,3]
[394807863,1763973032475,-294.3607141,0.00036573,5]
[394807864,1763973032485,-500.0,0.00036573,5]
[394807865,1763973032494,-500.0,0.00036573,5]
[394807866,1763973032504,-232.57906434,0.00036573,5]
[394807867,1763973032513,-500.0,0.00036573,5]
[394807868,1763973032522,-500.0,0.00036573,2]
[394807869,1763973032532,-500.0,0.00036573,5]
[394807870,1763973032541,-436.7307588,0.00036573,5]
[394807871,1763973032550,-500.0,0.00036573,5]
[394807872,1763973032560,-7945.65839926,0.00036592,2]
[394807873,1763973032572,-3536.55089111,0.00036592,2]
[394807874,1763973032580,-245.76260947,0.00036593,2]
[394807875,1763973032591,-2973.39073889,0.00036593,2]
[394807876,1763973032612,-6291.18319399,0.00036593,2]
[394807877,1763973032623,-1317.80925725,0.00036593,2]
[394807878,1763973032660,-482.9825,0.00036593,2]
[394807896,1763973038261,-13222.0659004,0.00036593,2]
[394807897,1763973038271,-1000.0,0.00036593,2]
[394807898,1763973038281,-2500.0,0.00036593,2]
[394807899,1763973038290,-203.94064662,0.00036593,15]
[394807900,1763973038301,-6175.57272048,0.00036593,2]
[394807901,1763973038311,-156.17328582,0.00036593,76]
[394807902,1763973038321,-306.39472779,0.00036593,2]
[394807903,1763973038331,-5000.0,0.00036594,30]
[394807904,1763973038340,-570.6690326,0.00036604,2]
[394807905,1763973038350,-789.89277182,0.00036604,11]
[394807906,1763973038359,-166.73,0.00036629,2]
[394807907,1763973038369,-789.8927718,0.00036654,11]
[394807908,1763973038378,-437.5236953,0.00036673,5]
[394807909,1763973038388,-500.0,0.00036673,2]
[394807910,1763973038397,-500.0,0.00036673,5]
[394807911,1763973038406,-500.0,0.00036673,5]
[394807912,1763973038416,-500.0,0.00036673,5]
[394807913,1763973038426,-500.0,0.00036673,5]
[394807914,1763973038436,-173.22970209,0.00036673,5]
[394807915,1763973038445,-500.0,0.00036673,5]
[394807916,1763973038454,-500.20054956,0.00036673,5]
[394807917,1763973038463,-500.54033424,0.00036673,5]
[394807918,1763973038473,-500.0,0.00036673,5]
[394807919,1763973038483,-500.0,0.00036673,5]
[394807920,1763973038493,-500.33650014,0.00036673,5]
[394807921,1763973038502,-500.0,0.00036673,5]
[394807922,1763973038512,-566.63618252,0.00036673,5]
[394807923,1763973038522,-501.2949182,0.00036673,5]
[394807925,1763973038531,-164.89619302,0.00036673,5]
[394807927,1763973038541,-417.61433429,0.00036673,2]
[394807928,1763973038551,-500.0,0.00036673,5]
[394807929,1763973038561,-158.84342817,0.00036673,5]
[394807930,1763973038570,-500.70866574,0.00036673,5]
[394807931,1763973038579,-414.56319387,0.00036673,5]
[394807932,1763973038589,-500.0,0.00036673,5]
[394807933,1763973038598,-500.0,0.00036673,5]
[394807934,1763973038608,-164.1506102,0.00036673,5]
[394807935,1763973038618,-505.39968933,0.00036673,5]
[394807937,1763973038629,-500.0,0.00036673,5]
[394807939,1763973038639,-520.99312177,0.00036673,5]
[394807941,1763973038648,-500.86341924,0.00036673,5]
[394807943,1763973038658,-500.0,0.00036673,5]
[394807945,1763973038668,-500.0,0.00036673,5]
[394807947,1763973038677,-501.27256296,0.00036673,5]
[394807949,1763973038687,-501.77996762,0.00036673,5]
[394807951,1763973038697,-500.0,0.00036673,5]
[394807953,1763973038706,-500.73816641,0.00036673,5]
[394807955,1763973038715,-4369.4890871,0.00036683,4]
[394807957,1763973038725,-1461.7,0.00036683,2]
[394807959,1763973038735,-436.94890871,0.00036684,4]
[394807961,1763973038744,-22884.5384414,0.00036684,4]
[394807963,1763973038755,-500.0,0.00036692,8]
[394807965,1763973038765,-387.36440118,0.00036692,8]
[394807967,1763973038775,-539.2436399,0.00036692,8]
[394807969,1763973038785,-500.0,0.00036692,8]
[394807971,1763973038795,-500.0,0.00036692,8]
[394807974,1763973038805,-500.0,0.00036692,8]
[394807976,1763973038814,-500.0,0.00036692,8]
[394807978,1763973038825,-500.0,0.00036692,8]
[394807980,1763973038834,-533.2407796,0.00036692,8]
[394807982,1763973038844,-500.0,0.00036692,8]
[394807984,1763973038853,-500.0,0.00036692,8]
[394807986,1763973038862,-542.90547539,0.00036692,8]
[394807988,1763973038872,-500.0,0.00036692,8]
[394807990,1763973038881,-530.05286,0.00036692,8]
[394807992,1763973038891,-500.0,0.00036692,8]
[394807994,1763973038900,-647.66334718,0.00036692,8]
[394807996,1763973038910,-500.0,0.00036692,8]
[394807998,1763973038919,-500.0,0.00036692,8]
[394807999,1763973038929,-505.08384143,0.00036692,8]
[394808001,1763973038940,-500.0,0.00036692,8]
[394808003,1763973038951,-500.0,0.00036692,8]
[394808005,1763973038961,-360.99566684,0.00036692,8]
[394808007,1763973038977,-568.46004446,0.00036692,8]
[394808010,1763973038988,-500.0,0.00036692,8]
[394808011,1763973038997,-500.0,0.00036692,8]
[394808014,1763973039007,-500.0,0.00036692,8]
[394808016,1763973039017,-500.0,0.00036692,8]
[394808017,1763973039027,-500.0,0.00036692,8]
[394808018,1763973039037,-500.0,0.00036692,8]
[394808019,1763973039047,-509.10078109,0.00036692,8]
[394808020,1763973039056,-500.0,0.00036692,8]
[394808021,1763973039065,-500.0,0.00036692,8]
[394808022,1763973039074,-500.0,0.00036692,8]
[394808023,1763973039083,-500.0,0.00036692,8]
[394808024,1763973039093,-538.19139482,0.00036692,8]
[394808025,1763973039103,-150.29343235,0.00036692,8]
[394808026,1763973039113,-518.45119057,0.00036692,8]
[394808027,1763973039123,-542.74963001,0.00036692,8]
[394808028,1763973039133,-572.77509088,0.00036692,8]
[394808029,1763973039142,-500.0,0.00036692,8]
[394808030,1763973039152,-500.0,0.00036692,8]
[394808031,1763973039161,-500.0,0.00036692,8]
[394808032,1763973039170,-500.0,0.00036692,8]
[394808033,1763973039179,-500.0,0.00036692,8]
[394808034,1763973039188,-500.0,0.00036692,8]
[394808035,1763973039198,-500.0,0.00036692,8]
[394808036,1763973039207,-198.4071392,0.00036692,8]
[394808038,1763973039217,-500.0,0.00036692,8]
[394808040,1763973039227,-500.0,0.00036692,8]
[394808042,1763973039237,-500.0,0.00036692,8]
[394808044,1763973039246,-521.2179233,0.00036692,8]
[394808046,1763973039255,-500.0,0.00036692,8]
[394808048,1763973039266,-502.94781315,0.00036692,5]
[394808050,1763973039275,-500.0,0.00036692,8]
[394808052,1763973039284,-500.0,0.00036692,8]
[394808054,1763973039293,-500.0,0.00036692,8]
[394808056,1763973039306,-2012.65,0.00036692,8]
[394808058,1763973039316,-500.0,0.00036692,8]
[394808060,1763973039326,-500.0,0.00036692,8]
[394808062,1763973039336,-546.74045324,0.00036692,8]
[394808064,1763973039346,-532.28,0.00036692,8]
[394808066,1763973039356,-500.0,0.00036692,8]
[394808068,1763973039365,-500.0,0.00036692,8]
[394808070,1763973039374,-500.0,0.00036692,8]
[394808072,1763973039383,-500.0,0.00036692,8]
[394808074,1763973039393,-500.0,0.00036692,8]
[394808076,1763973039402,-504.22252802,0.00036692,8]
[394808078,1763973039413,-500.0,0.00036692,8]
[394808080,1763973039422,-500.0,0.00036692,8]
[394808082,1763973039431,-500.0,0.00036692,8]
[394808084,1763973039441,-500.0,0.00036692,8]
[394808086,1763973039450,-500.0,0.00036692,8]
[394808088,1763973039460,-500.0,0.00036692,8]
[394808090,1763973039469,-500.0,0.00036692,8]
[394808092,1763973039478,-500.0,0.00036692,8]
[394808094,1763973039487,-566.37,0.00036692,8]
[394808096,1763973039497,-500.0,0.00036692,8]
[394808098,1763973039506,-500.0,0.00036692,8]
[394808100,1763973039515,-500.0,0.00036692,8]
[394808102,1763973039525,-500.0,0.00036692,8]
[394808104,1763973039534,-500.0,0.00036692,8]
[394808106,1763973039543,-500.0,0.00036692,8]
[394808108,1763973039552,-500.0,0.00036692,8]
[394808110,1763973039562,-500.0,0.00036692,8]
[394808112,1763973039571,-516.16614246,0.00036692,8]
[394808114,1763973039579,-906.62,0.00036692,8]
[394808116,1763973039588,-511.86838148,0.00036692,8]
[394808117,1763973039598,-500.0,0.00036692,8]
[394808120,1763973039608,-500.0,0.00036692,8]
[394808121,1763973039619,-500.0,0.00036692,8]
[394808123,1763973039629,-500.0,0.00036692,8]
[394808125,1763973039640,-500.0,0.00036692,8]
[394808128,1763973039650,-500.0,0.00036692,8]
[394808130,1763973039659,-500.0,0.00036692,8]
[394808132,1763973039669,-500.0,0.00036692,2]
[394808134,1763973039679,-500.0,0.00036692,8]
[394808136,1763973039689,-500.0,0.00036692,8]
[394808138,1763973039700,-500.0,0.00036692,8]
[394808140,1763973039709,-500.0,0.00036692,8]
[394808142,1763973039719,-500.0,0.00036692,8]
[394808144,1763973039735,-500.0,0.00036692,8]
[394808146,1763973039746,-500.0,0.00036692,8]
[394808148,1763973039755,-500.0,0.00036692,8]
[394808150,1763973039764,-502.03,0.00036692,8]
[394808151,1763973039774,-500.0,0.00036692,8]
[394808154,1763973039783,-500.0,0.00036692,8]
[394808155,1763973039792,-585.36917948,0.00036692,8]
[394808157,1763973039802,-500.0,0.00036692,8]
[394808159,1763973039813,-500.0,0.00036692,8]
[394808162,1763973039823,-604.80374692,0.00036692,8]
[394808164,1763973039833,-500.0,0.00036692,8]
[394808166,1763973039842,-500.0,0.00036692,8]
[394808168,1763973039852,-500.0,0.00036692,8]
[394808170,1763973039861,-563.76936846,0.00036692,8]
[394808171,1763973039871,-500.0,0.00036692,8]
[394808174,1763973039880,-582.30923984,0.00036692,8]
[394808176,1763973039889,-519.17636017,0.00036692,8]
[394808178,1763973039899,-500.0,0.00036692,8]
[394808180,1763973039908,-517.08,0.00036692,2]
[394808181,1763973039919,-500.0,0.00036692,8]
[394808183,1763973039928,-500.0,0.00036692,8]
[394808185,1763973039938,-500.0,0.00036692,8]
[394808187,1763973039947,-500.0,0.00036692,8]
[394808190,1763973039957,-500.0,0.00036692,8]
[394808191,1763973039970,-500.0,0.00036692,8]
[394808192,1763973039979,-499.19911174,0.00036692,8]
[394808193,1763973039991,-500.0,0.00036692,8]
[394808194,1763973040000,-500.0,0.00036692,8]
[394808195,1763973040011,-380.43405604,0.00036692,8]
[394808196,1763973040020,-500.0,0.00036692,8]
[394808197,1763973040029,-500.0,0.00036692,8]
[394808198,1763973040038,-504.95907445,0.00036692,8]
[394808199,1763973040051,-500.0,0.00036692,8]
[394808200,1763973040061,-500.0,0.00036692,8]
[394808201,1763973040070,-500.0,0.00036692,8]
[394808202,1763973040079,-608.074817,0.00036692,8]
[394808203,1763973040088,-500.0,0.00036692,8]
[394808204,1763973040098,-503.13416574,0.00036692,8]
[394808205,1763973040108,-500.0,0.00036692,8]
[394808206,1763973040118,-500.0,0.00036692,8]
[394808207,1763973040128,-500.0,0.00036692,8]
[394808208,1763973040138,-500.0,0.00036692,8]
[394808209,1763973040147,-506.36327147,0.00036692,8]
[394808210,1763973040157,-500.0,0.00036692,8]
[394808211,1763973040167,-428.51004448,0.00036692,8]
[394808212,1763973040176,-500.0,0.00036692,8]
[394808213,1763973040186,-500.0,0.00036692,8]
[394808214,1763973040195,-500.0,0.00036692,8]
[394808215,1763973040204,-500.0,0.00036692,8]
[394808216,1763973040214,-500.0,0.00036692,8]
[394808217,1763973040225,-516.12714644,0.00036692,8]
[394808218,1763973040235,-500.0,0.00036692,8]
[394808219,1763973040245,-500.0,0.00036692,8]
[394808220,1763973040255,-500.0,0.00036692,8]
[394808221,1763973040265,-500.0,0.00036692,8]
[394808222,1763973040278,-500.0,0.00036692,8]
[394808223,1763973040288,-500.0,0.00036692,15]
[394808224,1763973040299,-230.31458143,0.00036692,15]
[394808225,1763973040308,-269.99002876,0.00036692,15]
[394808226,1763973040317,-500.0,0.00036692,15]
[394808227,1763973040329,-302.01927769,0.00036692,15]
[394808228,1763973040339,-500.0,0.00036692,15]
[394808229,1763973040349,-500.0,0.00036692,7]
[394808230,1763973040360,-500.0,0.00036692,15]
[394808231,1763973040369,-500.0,0.00036692,2]
[394808232,1763973040378,-501.86314705,0.00036692,15]
[394808233,1763973040388,-500.0,0.00036692,15]
[394808234,1763973040397,-410.61827775,0.00036692,2]
[394808235,1763973040407,-500.0,0.00036692,15]
[394808236,1763973040417,-500.0,0.00036692,15]
[394808237,1763973040427,-500.0,0.00036692,7]
[394808238,1763973040437,-500.0,0.00036692,15]
[394808239,1763973040446,-206.79501577,0.00036692,15]
[394808240,1763973040455,-500.0,0.00036692,2]
[394808241,1763973040465,-442.06960664,0.00036692,7]
[394808242,1763973040474,-500.0,0.00036692,15]
[394808243,1763973040484,-500.0,0.00036692,2]
[394808244,1763973040493,-500.0,0.00036692,15]
[394808245,1763973040502,-500.0,0.00036692,2]
[394808246,1763973040512,-500.0,0.00036692,15]
[394808247,1763973040522,-500.0,0.00036692,15]
[394808248,1763973040531,-333.61216608,0.00036692,15]
[394808249,1763973040540,-500.0,0.00036692,2]
[394808250,1763973040549,-500.0,0.00036692,15]
[394808251,1763973040559,-500.0,0.00036692,2]
[394808252,1763973040569,-500.0,0.00036692,15]
[394808253,1763973040578,-500.0,0.00036692,15]
[394808254,1763973040588,-260.09384753,0.00036692,15]
[394808255,1763973040598,-500.0,0.00036692,15]
[394808256,1763973040609,-500.0,0.00036692,15]
[394808257,1763973040619,-500.0,0.00036692,15]
[394808258,1763973040629,-500.0,0.00036692,15]
[394808259,1763973040639,-500.0,0.00036692,15]
[394808260,1763973040649,-500.0,0.00036692,15]
[394808261,1763973040659,-500.0,0.00036692,15]
[394808262,1763973040670,-500.0,0.00036692,15]
[394808263,1763973040679,-500.0,0.00036692,15]
[394808264,1763973040688,-500.0,0.00036692,15]
[394808265,1763973040697,-500.0,0.00036692,15]
[394808266,1763973040708,-500.0,0.00036692,15]
[394808267,1763973040717,-400.0,0.00036692,15]
[394808268,1763973040727,-259.29024067,0.00036692,15]
[394808269,1763973040738,-500.0,0.00036692,15]
[394808270,1763973040747,-500.0,0.00036692,15]
[394808271,1763973040758,-500.0,0.00036692,15]
[394808272,1763973040767,-500.0,0.00036692,15]
[394808273,1763973040777,-500.0,0.00036692,15]
[394808274,1763973040788,-500.0,0.00036692,15]
[394808275,1763973040798,-500.0,0.00036692,15]
[394808276,1763973040808,-500.0,0.00036692,15]
[394808278,1763973040817,-500.0,0.00036693,8]
[394808279,1763973040827,-500.0,0.00036693,8]
[394808280,1763973040838,-539.50665888,0.00036693,8]
[394808281,1763973040848,-518.43505963,0.00036693,8]
[394808282,1763973040857,-500.0,0.00036693,8]
[394808283,1763973040866,-500.0,0.00036693,8]
[394808284,1763973040876,-500.0,0.00036693,8]
[394808285,1763973040885,-500.0,0.00036693,8]
[394808286,1763973040894,-500.0,0.00036693,8]
[394808287,1763973040904,-500.0,0.00036693,8]
[394808288,1763973040914,-500.0,0.00036693,8]
[394808289,1763973040923,-410.78241672,0.00036693,8]
[394808290,1763973040932,-621.87552239,0.00036693,8]
[394808291,1763973040941,-502.39909855,0.00036693,8]
[394808292,1763973040950,-500.0,0.00036693,8]
[394808293,1763973040960,-500.0,0.00036693,8]
[394808294,1763973040973,-500.0,0.00036693,8]
[394808295,1763973040982,-500.0,0.00036693,8]
[394808297,1763973040991,-500.0,0.00036693,8]
[394808298,1763973041001,-500.0,0.00036693,8]
[394808299,1763973041011,-500.0,0.00036693,8]
[394808300,1763973041020,-500.0,0.00036693,8]
[394808301,1763973041031,-500.0,0.00036693,8]
[394808302,1763973041041,-522.94261068,0.00036693,8]
[394808303,1763973041051,-505.79529391,0.00036693,8]
[394808304,1763973041061,-500.0,0.00036693,8]
[394808305,1763973041070,-500.0,0.00036693,8]
[394808306,1763973041080,-500.0,0.00036693,8]
[394808307,1763973041089,-500.0,0.00036693,8]
[394808308,1763973041099,-500.0,0.00036693,8]
[394808309,1763973041108,-500.0,0.00036693,8]
[394808310,1763973041117,-500.0,0.00036693,8]
[394808311,1763973041126,-500.0,0.00036693,8]
[394808312,1763973041135,-500.0,0.00036693,8]
[394808313,1763973041145,-388.99672676,0.00036693,8]
[394808314,1763973041155,-502.58755026,0.00036693,8]
[394808315,1763973041165,-500.0,0.00036693,8]
[394808316,1763973041175,-500.0,0.00036693,8]
[394808317,1763973041184,-502.90487024,0.00036693,8]
[394808318,1763973041193,-193.80052388,0.00036693,8]
[394808319,1763973041203,-591.28274463,0.00036693,8]
[394808320,1763973041213,-500.0,0.00036693,8]
[394808321,1763973041223,-500.0,0.00036693,8]
[394808322,1763973041233,-544.7,0.00036693,8]
[394808323,1763973041242,-500.0,0.00036693,8]
[394808324,1763973041252,-366.2674801,0.00036693,8]
[394808325,1763973041261,-500.0,0.00036693,8]
[394808326,1763973041270,-500.0,0.00036693,8]
[394808327,1763973041279,-613.04,0.00036693,8]
[394808328,1763973041288,-507.14205343,0.00036693,8]
[394808329,1763973041297,-500.0,0.00036693,8]
[394808330,1763973041306,-500.0,0.00036693,8]
[394808331,1763973041316,-507.11288139,0.00036693,8]
[394808332,1763973041326,-503.26409811,0.00036693,8]
[394808333,1763973041335,-500.0,0.00036693,8]
[394808334,1763973041508,-503.42259803,0.00036693,8]
[394808335,1763973041517,-500.0,0.00036693,8]
[394808336,1763973041526,-500.0,0.00036693,8]
[394808337,1763973041536,-519.83240011,0.00036693,8]
[394808338,1763973041546,-527.16914608,0.00036693,8]
[394808339,1763973041556,-504.59398426,0.00036693,8]
[394808340,1763973041566,-511.89,0.00036693,8]
[394808341,1763973041577,-500.0,0.00036693,8]
[394808342,1763973041586,-500.0,0.00036693,7]
[394808343,1763973041596,-500.0,0.00036693,7]
[394808344,1763973041605,-502.82294112,0.00036693,8]
[394808345,1763973041614,-500.0,0.00036693,7]
[394808346,1763973041624,-381.61084656,0.00036693,8]
[394808347,1763973041634,-500.0,0.00036693,8]
[394808348,1763973041644,-500.0,0.00036693,8]
[394808349,1763973041653,-500.0,0.00036693,8]
[394808350,1763973041662,-500.0,0.00036693,8]
[394808351,1763973041673,-500.0,0.00036693,8]
[394808352,1763973041682,-500.0,0.00036693,8]
[394808353,1763973041691,-633.33727952,0.00036693,8]
[394808354,1763973041703,-500.0,0.00036693,7]
[394808355,1763973041713,-536.74,0.00036693,8]
[394808356,1763973041722,-500.0,0.00036693,8]
[394808357,1763973041731,-530.01366376,0.00036693,8]
[394808358,1763973041741,-253.08906823,0.00036693,8]
[394808359,1763973041750,-500.0,0.00036693,8]
[394808360,1763973041760,-500.0,0.00036693,8]
[394808361,1763973041770,-500.0,0.00036693,8]
[394808362,1763973041779,-500.0,0.00036693,8]
[394808363,1763973041788,-500.0,0.00036693,8]
[394808364,1763973041798,-500.0,0.00036693,8]
[394808365,1763973041807,-541.17,0.00036693,8]
[394808366,1763973041816,-500.0,0.00036693,8]
[394808367,1763973041825,-507.73068236,0.00036693,8]
[394808368,1763973041835,-265.76227893,0.00036693,8]
[394808369,1763973041844,-500.0,0.00036693,8]
[394808370,1763973041854,-500.0,0.00036693,8]
[394808371,1763973041864,-500.0,0.00036693,8]
[394808372,1763973041873,-505.94409792,0.00036693,8]
[394808373,1763973041883,-500.0,0.00036693,8]
[394808374,1763973041892,-500.0,0.00036693,8]
[394808375,1763973041901,-500.0,0.00036693,8]
[394808376,1763973041911,-500.0,0.00036693,8]
[394808377,1763973041921,-1039.0,0.00036693,8]
[394808378,1763973041930,-500.0,0.00036693,8]
[394808379,1763973041940,-631.64,0.00036693,8]
[394808380,1763973041949,-329.41787743,0.00036693,8]
[394808381,1763973041959,-500.0,0.00036693,8]
[394808382,1763973041971,-500.0,0.00036693,8]
[394808383,1763973041980,-500.0,0.00036693,8]
[394808384,1763973041991,-501.18079075,0.00036693,8]
[394808385,1763973042001,-554.86707392,0.00036693,8]
[394808386,1763973042010,-500.0,0.00036693,8]
[394808387,1763973042020,-534.8914053,0.00036693,8]
[394808388,1763973042029,-500.0,0.00036693,8]
[394808389,1763973042038,-500.0,0.00036693,8]
[394808390,1763973042049,-500.0,0.00036693,8]
[394808391,1763973042058,-500.0,0.00036693,8]
[394808392,1763973042069,-500.0,0.00036693,8]
[394808393,1763973042079,-590.13237317,0.00036693,8]
[394808394,1763973042088,-500.0,0.00036693,8]
[394808395,1763973042098,-500.0,0.00036693,8]
[394808396,1763973042107,-500.0,0.00036693,8]
[394808397,1763973042116,-506.35243885,0.00036693,8]
[394808398,1763973042125,-322.07648745,0.00036693,8]
[394808399,1763973042135,-500.0,0.00036693,8]
[394808400,1763973042144,-500.0,0.00036693,8]
[394808401,1763973042155,-510.34965146,0.00036693,8]
[394808402,1763973042164,-500.0,0.00036693,8]
[394808403,1763973042173,-500.0,0.00036693,8]
[394808404,1763973042183,-500.0,0.00036693,8]
[394808405,1763973042193,-500.0,0.00036693,8]
[394808406,1763973042202,-504.99241861,0.00036693,8]
[394808407,1763973042213,-336.63909612,0.00036693,8]
[394808408,1763973042223,-500.0,0.00036693,8]
[394808409,1763973042232,-506.36696655,0.00036693,8]
[394808410,1763973042242,-500.0,0.00036693,8]
[394808411,1763973042251,-500.0,0.00036693,8]
[394808412,1763973042260,-515.73506141,0.00036693,8]
[394808413,1763973042269,-500.0,0.00036693,8]
[394808414,1763973042278,-500.0,0.00036693,8]
[394808415,1763973042287,-500.0,0.00036693,8]
[394808416,1763973042296,-500.0,0.00036693,8]
[394808417,1763973042306,-465.26678322,0.00036693,8]
[394808418,1763973042315,-505.70650122,0.00036693,8]
[394808419,1763973042325,-500.0,0.00036693,8]
[394808420,1763973042334,-411.61349472,0.00036693,8]
[394808421,1763973042343,-500.0,0.00036693,8]
[394808422,1763973042352,-500.0,0.00036693,8]
[394808423,1763973042361,-500.0,0.00036693,8]
[394808424,1763973042371,-500.0,0.00036693,8]
[394808425,1763973042380,-500.0,0.00036693,8]
[394808426,1763973042390,-500.0,0.00036693,8]
[394808427,1763973042399,-500.0,0.00036693,8]
[394808428,1763973042408,-500.0,0.00036693,8]
[394808429,1763973042417,-500.0,0.00036693,8]
[394808430,1763973042426,-611.70297074,0.00036693,8]
[394808431,1763973042435,-500.0,0.00036693,8]
[394808432,1763973042445,-500.0,0.00036693,8]
[394808433,1763973042454,-500.0,0.00036693,8]
[394808434,1763973042463,-500.0,0.00036693,8]
[394808435,1763973042474,-500.0,0.00036693,8]
[394808436,1763973042484,-500.0,0.00036693,8]
[394808437,1763973042494,-500.0,0.00036693,8]
[394808438,1763973042504,-500.0,0.00036693,8]